bitfinex/quotes_SOLUSD_20260308
["timestamp","ask_amount","ask_price","bid_price","bid_amount"]
[1772997964514,0.04821203,82.298,82.251,0.47589398]
[1772997965898,0.04821203,82.289,82.251,0.47589398]
[1772997967311,0.04821203,82.288,82.253,0.47589398]
[1772997970309,0.04821203,82.288,82.255,0.47589398]
[1772997973322,0.04821203,82.288,82.256,12.15716786]
[1772997973498,0.04821203,82.288,82.257,0.47589398]
[1772997973899,0.04821203,82.298,82.257,0.47589398]
[1772997975211,0.04821203,82.289,82.252,0.47589398]
[1772997975417,0.04821203,82.288,82.252,0.47589398]
[1772997976895,0.04821203,82.288,82.254,0.47589398]
[1772997977918,0.04821203,82.288,82.241,0.47589398]
[1772997981910,0.04821203,82.288,82.243,0.47589398]
[1772997983808,0.04821203,82.288,82.245,0.47589398]
[1772997984025,42.53302384,82.289,82.241,0.47589398]
[1772997984026,0.04821203,82.279,82.241,0.47589398]
[1772997984922,4.53729595,82.27,82.236,12.16004717]
[1772997985219,0.04821203,82.269,82.236,12.63594115]
[1772997985612,0.04821203,82.269,82.237,0.47589398]
[1772997985995,0.04821203,82.268,82.237,0.47589398]
[1772997986203,12.15524681,82.269,82.221,0.47589398]
[1772997986408,0.04821203,82.278,82.221,0.47589398]
[1772997987524,0.04821203,82.278,82.224,0.47589398]
[1772997989822,0.04821203,82.278,82.227,0.47589398]
[1772997990324,42.53819321,82.279,82.227,0.47589398]
[1772997990325,0.04821203,82.269,82.227,0.47589398]
[1772997992008,12.15524681,82.269,82.228,12.16130758]
[1772997992209,0.04821203,82.268,82.229,0.47589398]
[1772997994433,0.04821203,82.268,82.231,0.48469142]
[1772997995815,4.53729595,82.28,82.231,0.48469142]
[1772997996018,0.04821203,82.281,82.232,0.48469142]
[1772997996532,0.04821203,82.281,82.234,0.48469142]
[1772997998821,0.04821203,82.287,82.237,0.48469142]
[1772997999623,0.04821203,82.304,82.24,0.48469142]
[1772997999941,12.14860169,82.314,82.246,0.48469142]
[1772998000126,0.04821203,82.313,82.246,0.48469142]
[1772998000823,0.04821203,82.313,82.251,0.48469142]
[1772998001017,0.04821203,82.313,82.252,0.48469142]
[1772998001532,12.19607582,82.319,82.255,0.48469142]
[1772998003226,0.04821203,82.318,82.258,0.48469142]
[1772998005439,0.04821203,82.318,82.261,0.48469142]
[1772998006141,0.04821203,82.348,82.264,0.48469142]
[1772998006338,0.04821203,82.339,82.271,0.48469142]
[1772998007929,0.04821203,82.319,82.274,0.48469142]
[1772998010045,0.04821203,82.319,82.277,0.48469142]
[1772998011534,0.04821203,82.319,82.28,0.48469142]
[1772998013546,0.04821203,82.318,82.282,0.48469142]
[1772998017446,0.04821203,82.318,82.284,0.48469142]
[1772998019740,0.04821203,82.318,82.286,0.48469142]
[1772998023648,0.04821203,82.318,82.288,0.47699583]
[1772998025257,0.04821203,82.318,82.277,0.49998751]
[1772998025756,0.04821203,82.318,82.279,0.49998751]
[1772998027355,0.04821203,82.318,82.28,12.15362177]
[1772998027742,0.04821203,82.318,82.281,0.49998751]
[1772998030364,0.04821203,82.318,82.283,0.49998751]
[1772998032247,12.14638827,82.329,82.283,0.49998751]
[1772998032451,0.04821203,82.349,82.287,0.49998751]
[1772998032652,0.04821203,82.355,82.29,0.49998751]
[1772998033162,12.14294026,82.353,82.29,0.49998751]
[1772998035860,0.04821203,82.349,82.295,0.49998751]
[1772998037952,0.04821203,82.348,82.298,0.49998751]
[1772998039764,0.04821203,82.329,82.297,0.49998751]
[1772998040266,0.04821203,82.328,82.297,0.49998751]
[1772998040871,0.04821203,82.319,82.291,12.15185998]
[1772998042761,0.04821203,82.318,82.286,0.49998751]
[1772998043471,0.04821203,82.326,82.286,0.49998751]
[1772998044858,0.04821203,82.326,82.288,0.49998751]
[1772998045953,0.04821203,82.326,82.29,0.49998751]
[1772998046962,0.1,82.36,82.296,0.49998751]
[1772998047367,12.14226529,82.357,82.296,0.49998751]
[1772998047571,12.19165032,82.349,82.296,0.49998751]
[1772998048272,0.04821203,82.348,82.296,0.49998751]
[1772998048972,0.04821203,82.354,82.301,0.49998751]
[1772998049168,0.04821203,82.349,82.302,0.49998751]
[1772998049368,0.04821203,82.339,82.297,12.15111121]
[1772998049565,0.04821203,82.319,82.246,0.49998751]
[1772998049768,0.04821203,82.319,82.243,4.82477569]
[1772998049769,0.04821203,82.319,82.248,0.49998751]
[1772998050176,0.04821203,82.309,82.258,0.49998751]
[1772998050355,0.04821203,82.299,82.258,0.49998751]
[1772998051270,0.04821203,82.299,82.26,0.49998751]
[1772998053759,12.15081592,82.299,82.261,12.15642892]
[1772998053962,0.04821203,82.298,82.262,0.47589398]
[1772998054755,12.19756919,82.309,82.263,0.47589398]
[1772998055154,0.04821203,82.308,82.263,0.47589398]
[1772998056976,0.04821203,82.308,82.265,0.47589398]
[1772998058158,0.04821203,82.299,82.265,0.47589398]
[1772998059175,0.04821203,82.299,82.267,0.47589398]
[1772998059869,0.04821203,82.299,82.245,0.28432314]
[1772998059870,4.53494849,82.29,82.265,0.47589398]
[1772998060180,0.04821203,82.295,82.265,0.47589398]
[1772998061484,0.04821203,82.289,82.253,0.47589398]
[1772998061661,0.04821203,82.289,82.253,12.63350525]
[1772998062563,4.58316052,82.28,82.253,0.47589398]
[1772998062763,0.04821203,82.279,82.253,0.47589398]
[1772998064481,60.73931899,82.319,82.255,0.47589398]
[1772998064482,0.04821203,82.299,82.255,0.47589398]
[1772998064784,0.04821203,82.289,82.255,0.47589398]
[1772998065585,0.04821203,82.296,82.257,0.47589398]
[1772998066161,4.53494849,82.29,82.257,0.47589398]
[1772998066673,0.04821203,82.288,82.259,0.47589398]
[1772998066875,0.04821203,82.288,82.238,0.47589398]
[1772998067880,0.04821203,82.288,82.245,0.47589398]
[1772998069971,0.04821203,82.288,82.247,0.47589398]
[1772998072394,0.04821203,82.288,82.249,0.47589398]
[1772998075374,0.04821203,82.288,82.251,0.47589398]
[1772998075796,4.53494849,82.28,82.251,0.47589398]
[1772998076007,0.04821203,82.279,82.251,0.47589398]
[1772998076174,0.04821203,82.288,82.251,0.47589398]
[1772998077891,0.04821203,82.288,82.253,0.47589398]
[1772998081381,0.04821203,82.288,82.255,0.47589398]
[1772998083791,0.04821203,82.288,82.254,12.15746346]
[1772998083792,0.04821203,82.288,82.257,0.47589398]
[1772998084581,0.04821203,82.279,82.256,12.15716786]
[1772998087000,0.04821203,82.278,82.254,0.48191983]
[1772998090499,0.04821203,82.278,82.255,12.15731566]
[1772998090698,0.04821203,82.278,82.254,0.48191983]
[1772998098304,0.45086226,82.259,82.212,42.5728604]
[1772998098610,0.45086226,82.259,82.214,12.1633785]
[1772998099594,0.45086226,82.257,82.214,42.57182475]
[1772998099991,0.45086226,82.257,82.214,12.1633785]
[1772998100193,0.45086226,82.323,82.221,3.69383402]
[1772998100388,16.68638372,82.32,82.24,3.69383402]
[1772998100596,0.45086226,82.309,82.243,0.48191983]
[1772998100909,0.45086226,82.279,82.243,0.48191983]
[1772998103897,0.45086226,82.286,82.243,0.48191983]
[1772998104306,0.45086226,82.279,82.243,0.48191983]
[1772998105497,4.5386675,82.27,82.243,0.48191983]
[1772998105710,0.45086226,82.259,82.213,0.48191983]
[1772998105913,0.45086226,82.259,82.214,0.48191983]
[1772998106940,0.45086226,82.269,82.214,0.48191983]
[1772998107215,0.45086226,82.259,82.214,0.48191983]
[1772998108322,0.45086226,82.258,82.216,0.48191983]
[1772998109207,0.45086226,82.257,82.216,0.48191983]
[1772998111209,0.45086226,82.257,82.218,0.48191983]
[1772998111918,0.45086226,82.255,82.218,0.48191983]
[1772998114404,0.45086226,82.255,82.186,104.9]
[1772998114405,4.5386675,82.26,82.22,0.47917494]
[1772998114608,12.15642237,82.262,82.22,0.47917494]
[1772998116037,4.5386675,82.26,82.22,0.47917494]
[1772998116242,0.46768615,82.259,82.22,0.47917494]
[1772998117434,0.46768615,82.249,82.22,0.47917494]
[1772998118434,0.46768615,82.254,82.222,0.47917494]
[1772998119731,12.15767783,82.253,82.224,0.47917494]
[1772998120028,12.62536398,82.253,82.224,0.47917494]
[1772998121633,12.62536398,82.253,82.226,0.47917494]
[1772998122312,0.46768615,82.252,82.226,0.47917494]
[1772998122638,0.46768615,82.249,82.225,12.16175129]
[1772998125033,0.46768615,82.247,82.216,0.47917494]
[1772998127842,0.46768615,82.245,82.218,0.47917494]
[1772998129549,12.15894168,82.244,82.219,12.1626388]
[1772998129746,0.46768615,82.243,82.22,0.47917494]
[1772998130052,12.15613337,82.263,82.22,0.47917494]
[1772998130442,0.46768615,82.264,82.221,0.47917494]
[1772998131325,0.46768615,82.27,82.221,0.47917494]
[1772998131525,12.15524681,82.269,82.222,42.56768261]
[1772998131741,12.15524681,82.269,82.224,0.47917494]
[1772998132652,12.62293296,82.269,82.224,0.47917494]
[1772998132844,0.46768615,82.268,82.224,0.47917494]
[1772998133944,12.15554231,82.267,82.225,42.56612952]
[1772998134130,0.46768615,82.266,82.226,0.47917494]
[1772998136841,0.46768615,82.264,82.228,0.47917494]
[1772998138634,0.46768615,82.264,82.23,0.47917494]
[1772998140159,0.46768615,82.264,82.231,42.56302366]
[1772998140338,0.46768615,82.264,82.232,0.47917494]
[1772998140538,0.46768615,82.262,82.232,0.47917494]
[1772998143153,0.49284322,82.279,82.234,0.46928752]
[1772998145662,0.46472426,82.277,82.236,0.49025239]
[1772998148648,0.46472426,82.275,82.238,0.49025239]
[1772998150668,0.46472426,82.273,82.24,0.49025239]
[1772998151986,0.46472426,82.271,82.242,0.49025239]
[1772998154750,0.46472426,82.271,82.244,0.49025239]
[1772998157375,0.46472426,82.269,82.246,0.49025239]
[1772998158770,0.46472426,82.269,82.232,0.49025239]
[1772998159269,0.46472426,82.267,82.234,0.49025239]
[1772998160879,0.46472426,82.265,82.236,0.49025239]
[1772998163379,0.46472426,82.265,82.235,12.16027239]
[1772998163380,0.46472426,82.263,82.238,0.49025239]
[1772998165565,0.46472426,82.261,82.238,0.49025239]
[1772998166781,0.46472426,82.261,82.239,12.15968092]
[1772998167280,0.46472426,82.261,82.239,12.64993331]
[1772998167462,0.46472426,82.261,82.24,0.49025239]
[1772998168577,0.46472426,82.261,82.241,12.15938522]
[1772998168761,0.46472426,82.261,82.241,12.64963761]
[1772998169577,0.46472426,82.261,82.236,0.49025239]
[1772998170377,0.46472426,82.259,82.232,0.49025239]
[1772998170583,0.46472426,82.259,82.218,0.49025239]
[1772998171876,12.62159653,82.258,82.22,0.49025239]
[1772998172079,0.46472426,82.257,82.219,11.15289119]
[1772998172271,0.46472426,82.261,82.219,11.15289119]
[1772998172473,0.46472426,82.261,82.219,41.5594882]
[1772998174184,0.47109124,82.259,82.222,0.46138211]
[1772998176673,0.47109124,82.257,82.224,0.46138211]
[1772998180483,0.47109124,82.255,82.226,0.46138211]
[1772998180780,0.47109124,82.261,82.226,0.46138211]
[1772998181981,0.47109124,82.259,82.226,0.46138211]
[1772998182694,0.47109124,82.257,82.227,12.16145548]
[1772998183078,0.47109124,82.257,82.227,12.62283759]
[1772998183996,0.47109124,82.257,82.216,30.40759986]
[1772998183997,0.47109124,82.257,82.222,12.16205823]
[1772998184297,0.47109124,82.257,82.223,0.46138211]
[1772998186197,0.47109124,82.255,82.225,0.46138211]
[1772998188297,12.15716786,82.256,82.227,0.46138211]
[1772998188498,0.47109124,82.255,82.227,0.46138211]
[1772998189494,0.47109124,82.255,82.229,0.46138211]
[1772998190798,0.47109124,82.279,82.23,0.46138211]
[1772998190987,0.47109124,82.278,82.23,0.46138211]
[1772998192013,0.47109124,82.276,82.233,0.46138211]
[1772998193818,0.47109124,82.287,82.233,0.46138211]
[1772998194422,0.47109124,82.287,82.232,0.28432314]
[1772998194423,0.47109124,82.285,82.235,0.46138211]
[1772998195715,30.37851662,82.295,82.236,0.46138211]
[1772998195716,0.47109124,82.29,82.236,0.46138211]
[1772998196293,0.47109124,82.29,82.238,0.28432314]
[1772998196498,0.47109124,82.29,82.239,0.46138211]
[1772998198525,0.47109124,82.298,82.242,0.46138211]
[1772998200525,0.47109124,82.296,82.245,0.46138211]
[1772998200707,0.47109124,82.319,82.248,0.46138211]
[1772998200908,0.47109124,82.319,82.247,0.28432314]
[1772998200909,0.47109124,82.315,82.253,0.46138211]
[1772998201113,0.47109124,82.315,82.255,0.46138211]
[1772998201505,0.47109124,82.315,82.258,0.46138211]
[1772998201711,0.47109124,82.315,82.263,0.46138211]
[1772998201903,0.47109124,82.315,82.264,0.46138211]
[1772998202732,0.47666644,82.327,82.267,0.46138211]
[1772998204020,0.47666644,82.325,82.27,0.48045414]
[1772998205732,0.45197095,82.319,82.27,0.48045414]
[1772998206226,0.45197095,82.317,82.273,0.45197126]
[1772998206429,0.45197095,82.323,82.273,0.45197126]
[1772998206605,0.45197095,82.323,82.271,103.31708619]
[1772998206606,0.45197095,82.339,82.276,0.45197126]
[1772998206805,0.45197095,82.339,82.279,0.45197126]
[1772998207930,0.45197095,82.339,82.293,0.45197126]
[1772998209304,0.45197095,82.337,82.295,0.45197126]
[1772998209508,0.45197095,82.337,82.294,42.53043963]
[1772998209509,4.53509019,82.33,82.294,12.15155418]
[1772998209703,0.45197095,82.329,82.294,12.15155418]
[1772998209908,0.45197095,82.319,82.276,0.45197126]
[1772998210526,0.28432314,82.332,82.268,0.45197126]
[1772998210527,0.45197095,82.309,82.268,0.45197126]
[1772998210724,0.45197095,82.299,82.223,0.45197126]
[1772998210915,0.45197095,82.289,82.226,0.45197126]
[1772998211316,0.45197095,82.289,82.227,0.45197126]
[1772998211518,0.45197095,82.287,82.23,0.45197126]
[1772998212044,0.45197095,82.287,82.232,0.28432314]
[1772998212217,0.45197095,82.287,82.233,0.45197126]
[1772998213728,0.45197095,82.287,82.236,0.45197126]
[1772998214311,0.45197095,82.298,82.24,0.45197126]
[1772998214516,0.45197095,82.304,82.241,0.45197126]
[1772998215632,0.45197095,82.304,82.242,0.45197126]
[1772998216017,0.45197095,82.302,82.245,0.45197126]
[1772998217934,12.15052064,82.301,82.246,42.55526104]
[1772998218142,0.45197095,82.299,82.248,0.45197126]
[1772998221529,0.45197095,82.297,82.251,0.45197126]
[1772998222622,0.45197095,82.297,82.253,0.28432314]
[1772998222821,0.45197095,82.297,82.254,0.45197126]
[1772998224749,0.16431341,82.297,82.257,0.45197126]
[1772998225444,42.51752328,82.319,82.257,0.45197126]
[1772998226849,0.45197095,82.316,82.26,0.45197126]
[1772998228739,0.45197095,82.314,82.263,0.45197126]
[1772998231061,0.45197095,82.314,82.266,0.45197126]
[1772998231269,0.45197095,82.312,82.266,0.45197126]
[1772998233758,0.4807826,82.31,82.268,0.48779239]
[1772998233939,0.4807826,82.31,82.269,0.48779239]
[1772998236158,0.4807826,82.308,82.268,0.48779239]
[1772998237639,0.4807826,82.306,82.27,0.48779239]
[1772998240766,0.4807826,82.304,82.271,12.6427437]
[1772998241062,0.4807826,82.304,82.271,12.15495131]
[1772998241262,0.4807826,82.299,82.266,12.15559827]
[1772998241469,0.4807826,82.299,82.267,0.48779239]
[1772998243976,0.4807826,82.297,82.269,0.48779239]
[1772998246370,0.4807826,82.295,82.258,0.48779239]
[1772998249369,0.4807826,82.293,82.26,0.48779239]
[1772998250353,0.4807826,82.293,82.259,12.15672449]
[1772998251463,0.4807826,82.291,82.259,0.48779239]
[1772998254955,0.4807826,82.289,82.261,0.48779239]
[1772998256360,0.4807826,82.289,82.262,0.48779239]
[1772998257153,0.4807826,82.289,82.264,0.48779239]
[1772998257358,0.4807826,82.297,82.264,0.48779239]
[1772998257678,0.4807826,82.296,82.264,0.48779239]
[1772998261481,0.4807826,82.296,82.246,0.14216157]
[1772998263469,0.4807826,82.296,82.25,0.46652625]
[1772998263878,0.46820253,82.303,82.253,0.46652625]
[1772998264380,0.46820253,82.279,82.238,12.15982878]
[1772998264565,0.46820253,82.279,82.239,0.46652625]
[1772998265778,12.1539172,82.278,82.24,12.15953307]
[1772998265983,0.46739446,82.277,82.24,12.628549]
[1772998266278,0.46739446,82.277,82.241,0.46901593]
[1772998270772,0.46739446,82.275,82.243,0.46901593]
[1772998273302,0.46739446,82.273,82.245,0.46901593]
[1772998273878,0.46739446,82.269,82.233,12.16056814]
[1772998274084,0.46739446,82.269,82.234,0.46901593]
[1772998276497,0.46739446,82.269,82.236,0.46901593]
[1772998277194,0.46739446,82.267,82.236,0.46901593]
[1772998277892,0.46739446,82.267,82.235,12.16027239]
[1772998278372,0.46739446,82.267,82.229,0.46901593]
[1772998278581,0.46739446,82.265,82.226,0.46901593]
[1772998280896,0.46739446,82.263,82.228,0.46901593]
[1772998282293,0.46739446,82.263,82.227,42.56509418]
[1772998282496,0.46739446,82.268,82.228,0.46901593]
[1772998282682,0.46739446,82.268,82.231,0.46901593]
[1772998286306,0.46739446,82.289,82.234,0.46901593]
[1772998287600,42.51752328,82.319,82.24,0.46901593]
[1772998288295,4.53976867,82.31,82.24,0.46901593]
[1772998288485,12.14933968,82.309,82.246,0.46901593]
[1772998289583,0.46739446,82.308,82.246,0.46901593]
[1772998290883,0.46739446,82.306,82.249,0.46901593]
[1772998294707,0.47616479,82.304,82.252,0.49241716]
[1772998295087,0.47616479,82.299,82.252,0.49241716]
[1772998297496,0.47616479,82.297,82.254,0.49241716]
[1772998297698,0.47616479,82.302,82.255,0.49241716]
[1772998299508,0.47616479,82.3,82.257,0.49241716]
[1772998299811,0.47616479,82.299,82.257,0.49241716]
[1772998300708,0.47616479,82.297,82.259,0.49241716]
[1772998302793,0.47616479,82.297,82.26,42.54801846]
[1772998302998,0.47616479,82.297,82.261,0.49241716]
[1772998303213,0.47616479,82.297,82.262,0.49241716]
[1772998305124,0.47616479,82.316,82.264,0.49241716]
[1772998307423,0.47616479,82.314,82.267,0.49241716]
[1772998307807,0.47616479,82.328,82.272,0.49241716]
[1772998308017,0.47616479,82.328,82.273,0.49241716]
[1772998309234,0.47616479,82.328,82.276,0.49241716]
[1772998309519,12.62193819,82.334,82.279,0.49241716]
[1772998309725,0.47616479,82.333,82.279,0.49241716]
[1772998310540,0.47616479,82.333,82.282,0.49241716]
[1772998311127,12.62196295,82.333,82.283,42.53612531]
[1772998311329,0.47616479,82.332,82.285,0.49241716]
[1772998314638,0.47616479,82.332,82.288,0.49241716]
[1772998316114,0.47616479,82.338,82.288,0.49241716]
[1772998316621,0.1,82.34,82.294,0.49241716]
[1772998316921,0.1,82.34,82.295,0.49241716]
[1772998317924,0.1,82.34,82.302,0.49241716]
[1772998318130,0.1,82.34,82.306,0.49241716]
[1772998318515,0.57616479,82.34,82.302,0.28432314]
[1772998318826,0.47616479,82.338,82.299,12.15080109]
[1772998319242,0.47616479,82.338,82.3,0.49241716]
[1772998319527,0.47616479,82.338,82.291,12.15199718]
[1772998319741,0.47616479,82.338,82.292,0.49241716]
[1772998320448,0.1,82.34,82.294,3.69383402]
[1772998320722,0.47616479,82.339,82.299,0.49241716]
[1772998321525,0.47616479,82.339,82.294,3.69383402]
[1772998321526,0.47616479,82.339,82.285,12.64521821]
[1772998321825,0.47616479,82.329,82.286,0.49241716]
[1772998322413,0.47616479,82.329,82.281,12.15347318]
[1772998322816,0.49851125,82.327,82.281,12.15347318]
[1772998323012,0.49851125,82.309,82.265,0.45471476]
[1772998323232,0.49851125,82.309,82.257,12.15702007]
[1772998323233,0.49851125,82.299,82.257,12.15702007]
[1772998323619,0.49851125,82.299,82.257,12.61173483]
[1772998323926,0.49851125,82.299,82.258,0.45471476]
[1772998325436,0.45232317,82.297,82.243,0.48024176]
[1772998326623,0.45232317,82.295,82.245,0.48024176]
[1772998327835,0.45232317,82.269,82.233,0.48024176]
[1772998328133,0.45232317,82.269,82.234,0.48024176]
[1772998328633,0.45232317,82.267,82.22,0.7645649]
[1772998328932,0.45232317,82.267,82.221,0.48024176]
[1772998329111,0.45232317,82.259,82.221,0.48024176]
[1772998330315,0.45232317,82.288,82.223,0.48024176]
[1772998330536,0.45232317,82.288,82.224,0.48024176]
[1772998330722,0.45232317,82.286,82.227,0.48024176]
[1772998333046,4.53804998,82.29,82.176,36.48525387]
[1772998333047,0.45232317,82.284,82.229,0.62240333]
[1772998333246,0.45232317,82.279,82.23,0.48024176]
[1772998333626,4.53804998,82.27,82.23,0.48024176]
[1772998333827,0.45232317,82.269,82.23,0.48024176]
[1772998334022,0.45232317,82.269,82.223,12.64217439]
[1772998334348,0.45232317,82.259,82.224,12.1618992]
[1772998334653,0.45232317,82.269,82.225,0.48024176]
[1772998334819,0.45232317,82.269,82.224,12.1618992]
[1772998335338,0.45232317,82.259,82.22,0.48024176]
[1772998337338,12.15685701,82.259,82.223,0.48024176]
[1772998338139,0.45232317,82.258,82.223,0.48024176]
[1772998338321,0.45232317,82.258,82.222,0.28432314]
[1772998338522,0.45232317,82.258,82.221,12.16234295]
[1772998338744,4.53804998,82.25,82.212,0.48024176]
[1772998338924,0.45232317,82.249,82.211,12.16382235]
[1772998339324,0.45232317,82.247,82.211,12.16382235]
[1772998340023,0.45232317,82.247,82.21,0.2]
[1772998340024,0.45232317,82.229,82.21,1e-08]
[1772998341126,4.53804998,82.22,82.21,1e-08]
[1772998341336,0.45232317,82.217,82.21,1e-08]
[1772998342146,0.45232317,82.217,82.19,0.2]
[1772998342724,4.53804998,82.24,82.19,0.2]
[1772998342725,12.16220696,82.222,82.191,0.48024176]
[1772998343636,12.16220696,82.222,82.192,0.48024176]
[1772998345235,4.99037315,82.24,82.193,0.48024176]
[1772998345445,12.6105257,82.249,82.195,0.48024176]
[1772998345643,12.15731566,82.255,82.199,0.48024176]
[1772998345822,0.45232317,82.254,82.199,0.48024176]
[1772998346734,12.15524681,82.269,82.202,0.48024176]
[1772998347426,12.15479572,82.273,82.211,0.48024176]
[1772998347626,12.15479572,82.273,82.214,0.14216157]
[1772998347833,0.45232317,82.289,82.23,0.48024176]
[1772998348427,0.45232317,82.279,82.23,0.48024176]
[1772998349649,42.53871021,82.278,82.231,12.1608639]
[1772998349847,0.45232317,82.277,82.232,0.48024176]
[1772998350924,0.45232317,82.269,82.232,0.48024176]
[1772998352246,0.45232317,82.267,82.234,0.48024176]
[1772998354047,0.45232317,82.267,82.227,12.64368291]
[1772998354240,0.46048482,82.265,82.228,0.48235347]
[1772998357256,0.46048482,82.263,82.229,12.16115968]
[1772998357656,0.46048482,82.263,82.23,0.48235347]
[1772998360756,12.15628115,82.262,82.232,0.48235347]
[1772998361764,0.46048482,82.261,82.232,0.48235347]
[1772998363060,0.46048482,82.268,82.232,0.76667661]
[1772998363261,0.46048482,82.304,82.235,0.48235347]
[1772998363461,0.46048482,82.302,82.241,0.48235347]
[1772998365161,0.46048482,82.3,82.244,0.48235347]
[1772998366860,0.46048482,82.298,82.247,0.48235347]
[1772998369762,0.46048482,82.296,82.249,0.48235347]
[1772998371650,42.52992283,82.295,82.25,12.15805471]
[1772998371867,0.46048482,82.294,82.251,0.48235347]
[1772998372849,0.46048482,82.292,82.253,0.48235347]
[1772998375753,0.46048482,82.29,82.255,0.48235347]
[1772998377078,0.46048482,82.288,82.255,0.48235347]
[1772998377370,0.46048482,82.288,82.257,0.48235347]
[1772998378462,0.46048482,82.288,82.251,12.15776443]
[1772998378977,0.46048482,82.288,82.252,0.48235347]
[1772998379756,0.46048482,82.286,82.254,0.48235347]
[1772998381872,0.46048482,82.286,82.256,0.48235347]
[1772998382268,12.15288327,82.285,82.256,0.48235347]
[1772998382466,0.46048482,82.284,82.256,0.48235347]
[1772998383276,0.46048482,82.284,82.232,0.45831669]
[1772998383673,12.15288327,82.285,82.231,0.28432314]
[1772998383674,12.15288327,82.285,82.235,0.45831669]
[1772998384064,0.45881321,82.287,82.238,0.45831669]
[1772998387381,0.46862618,82.285,82.241,0.4998991]
[1772998389381,0.46862618,82.283,82.244,0.4998991]
[1772998390778,0.46862618,82.289,82.244,0.4998991]
[1772998391858,0.46862618,82.287,82.247,0.4998991]
[1772998393775,0.46862618,82.287,82.249,0.28432314]
[1772998394077,0.46862618,82.287,82.25,0.4998991]
[1772998394876,0.46862618,82.285,82.25,0.4998991]
[1772998396284,0.46862618,82.283,82.252,0.4998991]
[1772998397880,0.46862618,82.283,82.251,12.15790689]
[1772998397881,0.1,82.36,82.257,3.69383402]
[1772998398087,0.1,82.36,82.3,3.69383402]
[1772998398293,0.56862618,82.35,82.299,0.4998991]
[1772998398469,0.56862618,82.35,82.303,0.4998991]
[1772998398666,0.1,82.35,82.303,0.4998991]
[1772998398886,0.1,82.36,82.299,0.4998991]
[1772998399067,0.1,82.36,82.298,0.28432314]
[1772998399068,0.1,82.36,82.308,3.69383402]
[1772998399268,3.69383402,82.462,82.318,3.69383402]
[1772998399491,4.53770411,82.4,82.32,0.4998991]
[1772998399788,4.53770411,82.44,82.331,0.4998991]
[1772998399991,4.53770411,82.4,82.331,0.4998991]
[1772998400172,12.13606961,82.399,82.334,0.4998991]
[1772998400366,12.13032824,82.438,82.341,8.51860971]
[1772998400588,4.53770411,82.4,82.349,0.4998991]
[1772998400784,12.13032824,82.438,82.349,0.4998991]
[1772998400785,3.69383402,82.434,82.349,0.4998991]
[1772998401097,4.53770411,82.4,82.323,0.4998991]
[1772998401294,0.46862618,82.399,82.328,3.69383402]
[1772998401491,0.46862618,82.429,82.345,5.32467479]
[1772998401694,0.46862618,82.429,82.358,0.4998991]
[1772998401866,0.46862618,82.429,82.371,0.4998991]
[1772998402189,0.46862618,82.427,82.371,0.28432314]
[1772998402367,0.28432314,82.441,82.371,0.4998991]
[1772998402368,0.46862618,82.419,82.371,0.4998991]
[1772998402568,0.46862618,82.399,82.325,0.4998991]
[1772998402767,0.46862618,82.399,82.343,0.4998991]
[1772998402982,0.46862618,82.432,82.35,4.82477569]
[1772998403186,4.53770411,82.44,82.371,0.4998991]
[1772998403390,0.46862618,82.429,82.371,0.4998991]
[1772998403588,12.1291512,82.446,82.371,0.4998991]
[1772998403589,12.11612222,82.42,82.371,0.4998991]
[1772998403778,12.11612222,82.42,82.325,42.51442452]
[1772998403779,0.46862618,82.409,82.325,42.51442452]
[1772998404087,0.28432314,82.431,82.325,42.51442452]
[1772998404088,0.46862618,82.399,82.344,0.4998991]
[1772998404266,0.46862618,82.399,82.349,0.4998991]
[1772998404469,0.46862618,82.409,82.35,0.4998991]
[1772998404677,0.46862618,82.399,82.35,0.4998991]
[1772998405071,0.46862618,82.407,82.35,0.4998991]
[1772998405884,12.13371352,82.415,82.35,0.4998991]
[1772998406193,0.46862618,82.409,82.355,0.4998991]
[1772998406708,0.46862618,82.399,82.355,0.4998991]
[1772998407008,12.11612222,82.41,82.355,0.4998991]
[1772998407009,0.46862618,82.41,82.355,0.4998991]
[1772998407575,0.46862618,82.432,82.36,0.4998991]
[1772998407799,0.46862618,82.429,82.36,0.4998991]
[1772998408011,0.46862618,82.419,82.36,0.4998991]
[1772998409701,0.46862618,82.417,82.36,0.4998991]
[1772998409877,0.46862618,82.409,82.36,0.4998991]
[1772998410894,0.46862618,82.399,82.36,0.4998991]
[1772998411194,0.46862618,82.409,82.36,0.4998991]
[1772998411500,0.46862618,82.409,82.363,0.4998991]
[1772998412091,12.13315746,82.419,82.363,0.4998991]
[1772998412297,0.46862618,82.418,82.363,0.4998991]
[1772998412801,0.46862618,82.427,82.373,0.49355035]
[1772998413183,0.48283005,82.435,82.376,0.49355035]
[1772998413699,12.11612222,82.45,82.376,0.49355035]
[1772998413700,0.48283005,82.449,82.376,0.49355035]
[1772998414095,0.48283005,82.449,82.381,0.49355035]
[1772998414602,0.48283005,82.448,82.381,0.49355035]
[1772998415103,0.48283005,82.439,82.384,0.49355035]
[1772998415281,12.11612222,82.42,82.384,0.49355035]
[1772998415594,0.48283005,82.419,82.384,0.49355035]
[1772998415902,0.48283005,82.439,82.384,0.49355035]
[1772998416997,0.48283005,82.437,82.384,0.49355035]